[Event "Late-Titled-Tuesday-Blitz-March-19-2024"]
[Site "Chess.com"]
[Date "2024.03.19"]
[Round "9"]
[White "carloseduar100"]
[Black "KorolDimitriy75"]
[Result "1-0"]
[WhiteElo "2265"]
[BlackElo "2366"]
[TimeControl "180+1"]
[EndTime "15:41:07 PDT"]
[Termination "carloseduar100 won by resignation"]

1. g3 {[%clk 0:02:59.8]} 1... c5 {[%clk 0:03:00.2]} 2. Bg2 {[%clk 0:02:58.4]}
2... g6 {[%clk 0:03:00.8]} 3. d3 {[%clk 0:02:58.1]} 3... Bg7 {[%clk 0:03:01.4]}
4. Nf3 {[%clk 0:02:58.1]} 4... Nc6 {[%clk 0:03:02]} 5. O-O {[%clk 0:02:58.3]}
5... e5 {[%clk 0:03:02.1]} 6. c3 {[%clk 0:02:58.9]} 6... Nge7 {[%clk 0:03:02.3]}
7. a3 {[%clk 0:02:59.2]} 7... O-O {[%clk 0:03:01.7]} 8. Re1 {[%clk 0:02:59.3]}
8... d6 {[%clk 0:03:01.3]} 9. Nbd2 {[%clk 0:02:59.8]} 9... h6 {[%clk 0:02:59.6]}
10. e4 {[%clk 0:03:00.7]} 10... f5 {[%clk 0:02:59.5]} 11. exf5 {[%clk
0:02:55.2]} 11... Nxf5 {[%clk 0:02:48]} 12. Ne4 {[%clk 0:02:53.4]} 12... Kh7
{[%clk 0:02:46.3]} 13. h4 {[%clk 0:02:44.7]} 13... Be6 {[%clk 0:02:43.6]} 14. h5
{[%clk 0:02:40.4]} 14... Qd7 {[%clk 0:02:37.2]} 15. hxg6+ {[%clk 0:02:39.6]}
15... Kxg6 {[%clk 0:02:38.1]} 16. d4 {[%clk 0:02:28.4]} 16... cxd4 {[%clk
0:02:25]} 17. cxd4 {[%clk 0:02:28.2]} 17... Ncxd4 {[%clk 0:02:23.2]} 18. Nxd4
{[%clk 0:02:23.1]} 18... Nxd4 {[%clk 0:02:15.1]} 19. Be3 {[%clk 0:02:22.6]}
19... Kh7 {[%clk 0:02:00.4]} 20. Bxd4 {[%clk 0:02:19.8]} 20... exd4 {[%clk
0:02:01.3]} 21. Qh5 {[%clk 0:02:06.3]} 21... Rf5 {[%clk 0:01:34.5]} 22. Qe2
{[%clk 0:02:06.1]} 22... Rf7 {[%clk 0:00:48.6]} 23. Nxd6 {[%clk 0:02:03.1]}
23... Qxd6 {[%clk 0:00:38.3]} 24. Qxe6 {[%clk 0:02:02.8]} 24... Qxe6 {[%clk
0:00:36.9]} 25. Rxe6 {[%clk 0:02:03.7]} 25... Rc8 {[%clk 0:00:28]} 26. Rd1
{[%clk 0:01:55.3]} 26... Rc2 {[%clk 0:00:18.9]} 27. Be4+ {[%clk 0:01:54.7]}
27... Kg8 {[%clk 0:00:17.5]} 28. Bxc2 {[%clk 0:01:55.1]} 28... Rc7 {[%clk
0:00:17.1]} 29. Bb3 {[%clk 0:01:54.3]} 1-0

[Event "Late-Titled-Tuesday-Blitz-March-19-2024"]
[Site "Chess.com"]
[Date "2024.03.19"]
[Round "9"]
[White "David_ATM"]
[Black "ACollins05"]
[Result "1-0"]
[WhiteElo "2328"]
[BlackElo "2514"]
[TimeControl "180+1"]
[EndTime "15:41:16 PDT"]
[Termination "David_ATM won by resignation"]

1. e4 {[%clk 0:03:00.9]} 1... a6 {[%clk 0:02:59.9]} 2. d4 {[%clk 0:02:59.2]}
2... b5 {[%clk 0:02:59.9]} 3. f3 {[%clk 0:02:59.7]} 3... Bb7 {[%clk 0:02:59.8]}
4. Be3 {[%clk 0:03:00]} 4... e6 {[%clk 0:03:00.1]} 5. a4 {[%clk 0:02:59.6]} 5...
b4 {[%clk 0:02:59.6]} 6. Nd2 {[%clk 0:02:58.5]} 6... Nf6 {[%clk 0:02:57.2]} 7.
c3 {[%clk 0:02:52.1]} 7... d5 {[%clk 0:02:49]} 8. e5 {[%clk 0:02:44.5]} 8...
Nfd7 {[%clk 0:02:48.6]} 9. Bd3 {[%clk 0:02:35.2]} 9... c5 {[%clk 0:02:45.5]} 10.
Ne2 {[%clk 0:02:35.7]} 10... Nc6 {[%clk 0:02:44.5]} 11. O-O {[%clk 0:02:34.6]}
11... Be7 {[%clk 0:02:43.7]} 12. Qe1 {[%clk 0:02:32.2]} 12... Qb6 {[%clk
0:02:37.4]} 13. f4 {[%clk 0:02:15.6]} 13... g6 {[%clk 0:02:36.8]} 14. Kh1 {[%clk
0:02:13.7]} 14... a5 {[%clk 0:02:27.8]} 15. Bb5 {[%clk 0:02:11.8]} 15... Ba6
{[%clk 0:02:26.6]} 16. Bxa6 {[%clk 0:01:58]} 16... Qxa6 {[%clk 0:02:25.1]} 17.
Nf3 {[%clk 0:01:50.4]} 17... h5 {[%clk 0:02:21.9]} 18. Bf2 {[%clk 0:01:46.3]}
18... O-O-O {[%clk 0:02:13.6]} 19. dxc5 {[%clk 0:01:41.6]} 19... b3 {[%clk
0:01:50]} 20. Ned4 {[%clk 0:01:28.6]} 20... Nxc5 {[%clk 0:01:40.2]} 21. Nb5
{[%clk 0:01:29]} 21... Nxa4 {[%clk 0:01:31.8]} 22. Qe2 {[%clk 0:01:04.6]} 22...
d4 {[%clk 0:00:49.7]} 23. Nd6+ {[%clk 0:01:02.9]} 1-0

[Event "Late-Titled-Tuesday-Blitz-March-19-2024"]
[Site "Chess.com"]
[Date "2024.03.19"]
[Round "9"]
[White "CarlosjPineror"]
[Black "Statham_01"]
[Result "1-0"]
[WhiteElo "2685"]
[BlackElo "2577"]
[TimeControl "180+1"]
[EndTime "15:41:30 PDT"]
[Termination "CarlosjPineror won on time"]

1. e4 {[%clk 0:02:59.4]} 1... e5 {[%clk 0:02:57.1]} 2. Nf3 {[%clk 0:02:59.4]}
2... Nc6 {[%clk 0:02:56]} 3. Bb5 {[%clk 0:02:59.2]} 3... a6 {[%clk 0:02:54.3]}
4. Ba4 {[%clk 0:02:59.1]} 4... Nf6 {[%clk 0:02:54.9]} 5. d3 {[%clk 0:02:59.2]}
5... b5 {[%clk 0:02:50.6]} 6. Bb3 {[%clk 0:02:59.3]} 6... Be7 {[%clk 0:02:50.9]}
7. c3 {[%clk 0:02:59.6]} 7... O-O {[%clk 0:02:48.1]} 8. h3 {[%clk 0:03:00.2]}
8... d5 {[%clk 0:02:47.6]} 9. Nbd2 {[%clk 0:03:00.7]} 9... Bb7 {[%clk
0:02:43.3]} 10. O-O {[%clk 0:02:58.4]} 10... dxe4 {[%clk 0:02:31.6]} 11. dxe4
{[%clk 0:02:57.6]} 11... Nd7 {[%clk 0:02:26.9]} 12. Qe2 {[%clk 0:02:56]} 12...
Nc5 {[%clk 0:02:24.4]} 13. Bc2 {[%clk 0:02:56.1]} 13... Bd6 {[%clk 0:02:17.8]}
14. Rd1 {[%clk 0:02:56.4]} 14... Qe7 {[%clk 0:02:17.4]} 15. Nf1 {[%clk 0:02:57]}
15... f5 {[%clk 0:01:36.5]} 16. exf5 {[%clk 0:02:53.9]} 16... e4 {[%clk
0:01:29.2]} 17. Nd4 {[%clk 0:02:54]} 17... Ne5 {[%clk 0:01:24.2]} 18. b4 {[%clk
0:02:37.5]} 18... Ncd3 {[%clk 0:01:19.1]} 19. Bb3+ {[%clk 0:02:38.1]} 19... Kh8
{[%clk 0:01:17.3]} 20. Be3 {[%clk 0:02:38.7]} 20... Qh4 {[%clk 0:01:13]} 21. Ng3
{[%clk 0:02:12.4]} 21... Rae8 {[%clk 0:00:24.6]} 22. Ne6 {[%clk 0:02:12.5]}
22... Nf3+ {[%clk 0:00:13.2]} 23. Qxf3 {[%clk 0:01:39.9]} 23... exf3 {[%clk
0:00:12.4]} 24. Bg5 {[%clk 0:01:40.7]} 1-0

[Event "Late-Titled-Tuesday-Blitz-March-19-2024"]
[Site "Chess.com"]
[Date "2024.03.19"]
[Round "9"]
[White "hell3raiser"]
[Black "EternalNight8"]
[Result "1-0"]
[WhiteElo "2361"]
[BlackElo "2456"]
[TimeControl "180+1"]
[EndTime "15:41:37 PDT"]
[Termination "hell3raiser won by checkmate"]

1. e4 {[%clk 0:02:55.2]} 1... e5 {[%clk 0:02:59.7]} 2. Nf3 {[%clk 0:02:55.1]}
2... Nf6 {[%clk 0:03:00.3]} 3. Nc3 {[%clk 0:02:51.5]} 3... Nc6 {[%clk
0:02:59.6]} 4. d4 {[%clk 0:02:50.6]} 4... exd4 {[%clk 0:02:57.2]} 5. Nxd4 {[%clk
0:02:51.5]} 5... Bb4 {[%clk 0:02:52]} 6. Nxc6 {[%clk 0:02:51.3]} 6... bxc6
{[%clk 0:02:51.5]} 7. Bd3 {[%clk 0:02:51.3]} 7... O-O {[%clk 0:02:49.4]} 8. O-O
{[%clk 0:02:50.9]} 8... d6 {[%clk 0:02:46.7]} 9. Bg5 {[%clk 0:02:49.7]} 9... h6
{[%clk 0:02:45.4]} 10. Bh4 {[%clk 0:02:49.4]} 10... Bxc3 {[%clk 0:02:36.4]} 11.
bxc3 {[%clk 0:02:49]} 11... Be6 {[%clk 0:02:35.8]} 12. c4 {[%clk 0:02:47.5]}
12... c5 {[%clk 0:02:12.7]} 13. f4 {[%clk 0:02:46.1]} 13... g5 {[%clk
0:01:54.9]} 14. fxg5 {[%clk 0:02:45.6]} 14... Nh7 {[%clk 0:01:54.5]} 15. Qh5
{[%clk 0:02:28.8]} 15... Qd7 {[%clk 0:01:02.6]} 16. Qxh6 {[%clk 0:02:21.8]}
16... f6 {[%clk 0:00:52.1]} 17. gxf6 {[%clk 0:02:05.5]} 17... Rf7 {[%clk
0:00:44.4]} 18. Rf3 {[%clk 0:01:55.4]} 18... Kh8 {[%clk 0:00:42.7]} 19. Rg3
{[%clk 0:01:51.7]} 19... Rg8 {[%clk 0:00:35.7]} 20. Rxg8+ {[%clk 0:01:50.4]}
20... Kxg8 {[%clk 0:00:36.6]} 21. Rf1 {[%clk 0:01:50.2]} 21... Bg4 {[%clk
0:00:34.3]} 22. h3 {[%clk 0:01:46.4]} 22... Be6 {[%clk 0:00:33]} 23. Rf3 {[%clk
0:01:45.1]} 23... Kh8 {[%clk 0:00:29.4]} 24. Rg3 {[%clk 0:01:45.2]} 24... c6
{[%clk 0:00:18.6]} 25. Kh2 {[%clk 0:01:38.3]} 25... a5 {[%clk 0:00:15.3]} 26. e5
{[%clk 0:01:38.4]} 26... dxe5 {[%clk 0:00:14.6]} 27. Rg7 {[%clk 0:01:31.8]}
27... Rxg7 {[%clk 0:00:13.6]} 28. fxg7+ {[%clk 0:01:31.8]} 28... Qxg7 {[%clk
0:00:13.7]} 29. Bf6 {[%clk 0:01:29.3]} 29... Qxf6 {[%clk 0:00:10.5]} 30. Qxh7#
{[%clk 0:01:29.5]} 1-0

[Event "Late-Titled-Tuesday-Blitz-March-19-2024"]
[Site "Chess.com"]
[Date "2024.03.19"]
[Round "9"]
[White "lluiss"]
[Black "OverallStranger"]
[Result "1-0"]
[WhiteElo "2275"]
[BlackElo "2371"]
[TimeControl "180+1"]
[EndTime "15:41:41 PDT"]
[Termination "lluiss won by resignation"]

1. Nf3 {[%clk 0:03:00.9]} 1... e5 {[%clk 0:02:58.5]} 2. Nxe5 {[%clk 0:02:59.9]}
2... Nc6 {[%clk 0:02:58.6]} 3. Nf3 {[%clk 0:02:59]} 3... Nf6 {[%clk 0:02:49.7]}
4. d4 {[%clk 0:02:58.7]} 4... d5 {[%clk 0:02:49.4]} 5. Bg5 {[%clk 0:02:57.8]}
5... h6 {[%clk 0:02:42.2]} 6. Bh4 {[%clk 0:02:56.8]} 6... Bd6 {[%clk 0:02:39.6]}
7. e3 {[%clk 0:02:56.6]} 7... g5 {[%clk 0:02:36.4]} 8. Bg3 {[%clk 0:02:55.8]}
8... Ne4 {[%clk 0:02:37]} 9. Bxd6 {[%clk 0:02:51.4]} 9... Qxd6 {[%clk
0:02:37.9]} 10. c3 {[%clk 0:02:50.6]} 10... f5 {[%clk 0:02:37.4]} 11. Be2 {[%clk
0:02:43.3]} 11... h5 {[%clk 0:02:35.1]} 12. Nfd2 {[%clk 0:02:25.8]} 12... g4
{[%clk 0:02:24.3]} 13. c4 {[%clk 0:02:06.7]} 13... O-O {[%clk 0:02:18.7]} 14.
cxd5 {[%clk 0:02:06.1]} 14... Ne7 {[%clk 0:02:18.2]} 15. Nc3 {[%clk 0:02:03.5]}
15... Nxc3 {[%clk 0:02:12.5]} 16. bxc3 {[%clk 0:02:02.7]} 16... Nxd5 {[%clk
0:02:13.4]} 17. c4 {[%clk 0:01:55.3]} 17... Nc3 {[%clk 0:02:08.1]} 18. c5 {[%clk
0:01:41.3]} 18... Qf6 {[%clk 0:01:55.2]} 19. Qb3+ {[%clk 0:01:39.4]} 19... Be6
{[%clk 0:01:55.4]} 20. Qxc3 {[%clk 0:01:39]} 20... f4 {[%clk 0:01:56.3]} 21.
exf4 {[%clk 0:01:25.4]} 21... Qxf4 {[%clk 0:01:54.8]} 22. O-O {[%clk 0:01:24.3]}
22... Bd5 {[%clk 0:01:53.3]} 23. Bc4 {[%clk 0:01:22.2]} 23... c6 {[%clk
0:01:52.3]} 24. Qe3 {[%clk 0:01:16.3]} 24... Qf5 {[%clk 0:01:49.7]} 25. Qe5
{[%clk 0:01:09.8]} 25... Qf7 {[%clk 0:01:49]} 26. Qg5+ {[%clk 0:01:00.5]} 26...
Kh7 {[%clk 0:01:44.4]} 27. Bxd5 {[%clk 0:00:51.5]} 27... cxd5 {[%clk 0:01:45.3]}
28. f3 {[%clk 0:00:45.5]} 28... Rg8 {[%clk 0:01:42.5]} 29. Qh4 {[%clk
0:00:45.6]} 29... gxf3 {[%clk 0:01:29.7]} 30. Nxf3 {[%clk 0:00:43.2]} 30... Qg6
{[%clk 0:01:30.3]} 31. g3 {[%clk 0:00:38.4]} 31... Rae8 {[%clk 0:01:19.1]} 32.
Ne5 {[%clk 0:00:37.9]} 32... Qd3 {[%clk 0:01:06.6]} 1-0

[Event "Late-Titled-Tuesday-Blitz-March-19-2024"]
[Site "Chess.com"]
[Date "2024.03.19"]
[Round "9"]
[White "TigrVShlyape"]
[Black "AsterPhoenix"]
[Result "1-0"]
[WhiteElo "2926"]
[BlackElo "2656"]
[TimeControl "180+1"]
[EndTime "15:41:51 PDT"]
[Termination "TigrVShlyape won by resignation"]

1. d4 {[%clk 0:03:00.9]} 1... Nf6 {[%clk 0:02:59.1]} 2. Bf4 {[%clk 0:02:55.6]}
2... c5 {[%clk 0:02:54]} 3. e3 {[%clk 0:02:54.4]} 3... Nd5 {[%clk 0:02:49.2]} 4.
Bg3 {[%clk 0:02:53.1]} 4... cxd4 {[%clk 0:02:48.1]} 5. exd4 {[%clk 0:02:48]}
5... Qb6 {[%clk 0:02:47.8]} 6. c4 {[%clk 0:02:46.9]} 6... Qxb2 {[%clk 0:02:45]}
7. cxd5 {[%clk 0:02:47.1]} 7... Qxa1 {[%clk 0:02:44.9]} 8. Qc2 {[%clk 0:02:47]}
8... Na6 {[%clk 0:02:33.9]} 9. Bxa6 {[%clk 0:02:44.1]} 9... bxa6 {[%clk
0:02:30.6]} 10. Ne2 {[%clk 0:02:39.8]} 10... g6 {[%clk 0:01:24.9]} 11. O-O
{[%clk 0:02:38.2]} 11... Bg7 {[%clk 0:01:24.8]} 12. Nbc3 {[%clk 0:02:37.3]}
12... Qxf1+ {[%clk 0:01:23.6]} 13. Kxf1 {[%clk 0:02:37.5]} 13... d6 {[%clk
0:01:14.2]} 14. Qa4+ {[%clk 0:02:12.8]} 14... Bd7 {[%clk 0:01:13.4]} 15. Qxa6
{[%clk 0:02:12.8]} 15... O-O {[%clk 0:01:13.2]} 16. Bf4 {[%clk 0:02:05.6]} 16...
Rfb8 {[%clk 0:01:00.4]} 17. h3 {[%clk 0:01:52.4]} 17... h5 {[%clk 0:01:00.2]}
18. Bg5 {[%clk 0:01:50.1]} 18... Kf8 {[%clk 0:00:58.1]} 19. f3 {[%clk
0:01:39.5]} 19... Rb2 {[%clk 0:00:56]} 20. Qa3 {[%clk 0:01:29.4]} 20... Rb7
{[%clk 0:00:49.4]} 21. Kf2 {[%clk 0:01:25.1]} 21... Rc8 {[%clk 0:00:47.8]} 22.
g4 {[%clk 0:01:22.5]} 22... hxg4 {[%clk 0:00:47.4]} 23. hxg4 {[%clk 0:01:22.6]}
23... Rcc7 {[%clk 0:00:43.4]} 24. Kg3 {[%clk 0:01:22.4]} 24... Rc8 {[%clk
0:00:37.8]} 25. Qa6 {[%clk 0:01:20.4]} 25... Rcc7 {[%clk 0:00:36.5]} 26. Qd3
{[%clk 0:01:19.4]} 26... Rb2 {[%clk 0:00:34.4]} 27. Qe3 {[%clk 0:01:18.9]} 27...
Bc8 {[%clk 0:00:28.8]} 28. Bh6 {[%clk 0:01:18.4]} 28... Ba6 {[%clk 0:00:26.9]}
29. Bxg7+ {[%clk 0:01:18]} 29... Kxg7 {[%clk 0:00:27.8]} 30. Nf4 {[%clk
0:01:15.2]} 30... Rc2 {[%clk 0:00:24.4]} 31. Ne4 {[%clk 0:01:14.3]} 31... Rxa2
{[%clk 0:00:23.2]} 32. Ng5 {[%clk 0:01:13.9]} 32... Rcc2 {[%clk 0:00:21.6]} 33.
Qxe7 {[%clk 0:01:12.1]} 1-0

[Event "Late-Titled-Tuesday-Blitz-March-19-2024"]
[Site "Chess.com"]
[Date "2024.03.19"]
[Round "9"]
[White "Kombinator01"]
[Black "MightyMike_009"]
[Result "0-1"]
[WhiteElo "2443"]
[BlackElo "2750"]
[TimeControl "180+1"]
[EndTime "15:41:52 PDT"]
[Termination "MightyMike_009 won by resignation"]

1. e4 {[%clk 0:02:20]} 1... e5 {[%clk 0:02:45.1]} 2. Nf3 {[%clk 0:02:19.1]} 2...
Nc6 {[%clk 0:02:41.9]} 3. Bc4 {[%clk 0:02:18.6]} 3... Bc5 {[%clk 0:02:41.1]} 4.
b4 {[%clk 0:02:17.4]} 4... Bxb4 {[%clk 0:02:40.7]} 5. c3 {[%clk 0:02:17.5]} 5...
Ba5 {[%clk 0:02:41.1]} 6. d4 {[%clk 0:02:16.4]} 6... exd4 {[%clk 0:02:41.5]} 7.
O-O {[%clk 0:02:12.2]} 7... Nf6 {[%clk 0:02:41.7]} 8. cxd4 {[%clk 0:02:08.9]}
8... d5 {[%clk 0:02:27]} 9. exd5 {[%clk 0:02:04.9]} 9... Nxd5 {[%clk 0:02:27.9]}
10. Ba3 {[%clk 0:02:00.4]} 10... Be6 {[%clk 0:02:25.1]} 11. Nbd2 {[%clk
0:01:48.4]} 11... Nce7 {[%clk 0:01:49.3]} 12. Qa4+ {[%clk 0:01:47.5]} 12... c6
{[%clk 0:01:49.6]} 13. Bxe7 {[%clk 0:01:26.5]} 13... Nxe7 {[%clk 0:01:49.5]} 14.
Bxe6 {[%clk 0:01:25.5]} 14... fxe6 {[%clk 0:01:50.4]} 15. Qb3 {[%clk 0:01:23.1]}
15... Bxd2 {[%clk 0:01:30.1]} 16. Nxd2 {[%clk 0:01:22.9]} 16... Qd7 {[%clk
0:01:30.5]} 17. Ne4 {[%clk 0:01:14]} 17... O-O {[%clk 0:01:20]} 18. Nc5 {[%clk
0:01:14.2]} 18... Qd5 {[%clk 0:01:20.4]} 19. Qxb7 {[%clk 0:01:06.4]} 19... Nf5
{[%clk 0:01:16.3]} 20. Nb3 {[%clk 0:00:51.8]} 20... Nh4 {[%clk 0:01:06.4]} 21.
f3 {[%clk 0:00:48.4]} 21... Qg5 {[%clk 0:01:04.9]} 22. g3 {[%clk 0:00:43.3]}
22... Qe3+ {[%clk 0:00:59.9]} 23. Kh1 {[%clk 0:00:41.1]} 23... Nxf3 {[%clk
0:00:57.7]} 24. Qxc6 {[%clk 0:00:36]} 24... Qe2 {[%clk 0:00:57.3]} 0-1

[Event "Late-Titled-Tuesday-Blitz-March-19-2024"]
[Site "Chess.com"]
[Date "2024.03.19"]
[Round "9"]
[White "Chempiblinka"]
[Black "Nicolik"]
[Result "1-0"]
[WhiteElo "2372"]
[BlackElo "2513"]
[TimeControl "180+1"]
[EndTime "15:41:52 PDT"]
[Termination "Chempiblinka won on time"]

1. Nf3 {[%clk 0:02:59.7]} 1... d5 {[%clk 0:02:59.6]} 2. g3 {[%clk 0:02:59.4]}
2... Nc6 {[%clk 0:03:00]} 3. Bg2 {[%clk 0:02:59.9]} 3... e5 {[%clk 0:02:59.6]}
4. O-O {[%clk 0:02:45]} 4... e4 {[%clk 0:02:54.3]} 5. Ne1 {[%clk 0:02:40.5]}
5... h5 {[%clk 0:02:53.7]} 6. h4 {[%clk 0:02:40]} 6... Bc5 {[%clk 0:02:47.5]} 7.
d3 {[%clk 0:02:34.3]} 7... Bf5 {[%clk 0:02:31.4]} 8. c4 {[%clk 0:02:31.8]} 8...
dxc4 {[%clk 0:02:23.2]} 9. Qa4 {[%clk 0:02:25.5]} 9... cxd3 {[%clk 0:02:01.2]}
10. exd3 {[%clk 0:02:25]} 10... Nf6 {[%clk 0:02:01.4]} 11. dxe4 {[%clk
0:02:18.5]} 11... Bd7 {[%clk 0:02:01.5]} 12. Bg5 {[%clk 0:02:05]} 12... Nd4
{[%clk 0:01:59.8]} 13. Qd1 {[%clk 0:02:03.8]} 13... Bg4 {[%clk 0:01:57.1]} 14.
Qa4+ {[%clk 0:01:43.9]} 14... b5 {[%clk 0:01:46.8]} 15. Qa6 {[%clk 0:01:37.2]}
15... Be2 {[%clk 0:01:31.8]} 16. e5 {[%clk 0:01:33.3]} 16... Bxf1 {[%clk
0:00:36.8]} 17. Kxf1 {[%clk 0:01:33.8]} 17... O-O {[%clk 0:00:33.7]} 18. exf6
{[%clk 0:01:31]} 18... gxf6 {[%clk 0:00:13.5]} 19. Qxf6 {[%clk 0:01:31.9]} 19...
Qxf6 {[%clk 0:00:13.2]} 20. Bxf6 {[%clk 0:01:32.3]} 20... Rae8 {[%clk
0:00:12.1]} 21. Nc3 {[%clk 0:01:31.2]} 21... a6 {[%clk 0:00:10.7]} 22. Nd3
{[%clk 0:01:29.4]} 22... Bb6 {[%clk 0:00:10.9]} 23. Nd5 {[%clk 0:01:29.1]} 23...
Re6 {[%clk 0:00:10.2]} 24. N3f4 {[%clk 0:01:24.2]} 24... Rd6 {[%clk 0:00:10.1]}
25. Be7 {[%clk 0:01:20.4]} 25... Re8 {[%clk 0:00:05.8]} 26. Nf6+ {[%clk
0:01:19.9]} 26... Rxf6 {[%clk 0:00:05.9]} 27. Bxf6 {[%clk 0:01:19.7]} 1-0

[Event "Late-Titled-Tuesday-Blitz-March-19-2024"]
[Site "Chess.com"]
[Date "2024.03.19"]
[Round "9"]
[White "Yurovskykh_Oleksandr"]
[Black "Julianos82"]
[Result "1-0"]
[WhiteElo "2587"]
[BlackElo "2397"]
[TimeControl "180+1"]
[EndTime "15:42:00 PDT"]
[Termination "Yurovskykh_Oleksandr won by resignation"]

1. d4 {[%clk 0:02:59.7]} 1... d5 {[%clk 0:02:59.8]} 2. Bf4 {[%clk 0:02:57.5]}
2... c5 {[%clk 0:02:57.1]} 3. e3 {[%clk 0:02:56.7]} 3... cxd4 {[%clk 0:02:56.3]}
4. exd4 {[%clk 0:02:57.6]} 4... Nc6 {[%clk 0:02:56.5]} 5. c3 {[%clk 0:02:57.3]}
5... Bf5 {[%clk 0:02:56.5]} 6. Nf3 {[%clk 0:02:53.4]} 6... e6 {[%clk 0:02:55.3]}
7. Qb3 {[%clk 0:02:53.9]} 7... Qc8 {[%clk 0:02:50.1]} 8. Nh4 {[%clk 0:02:54]}
8... Bg4 {[%clk 0:02:34.8]} 9. h3 {[%clk 0:02:49.3]} 9... Bh5 {[%clk 0:02:33.5]}
10. g4 {[%clk 0:02:43.3]} 10... Bg6 {[%clk 0:02:32.5]} 11. Nxg6 {[%clk
0:02:43.2]} 11... hxg6 {[%clk 0:02:33.4]} 12. Bg2 {[%clk 0:02:39]} 12... Nf6
{[%clk 0:02:21.1]} 13. Nd2 {[%clk 0:02:38]} 13... Be7 {[%clk 0:02:20.9]} 14. Bg3
{[%clk 0:02:37.2]} 14... Nd7 {[%clk 0:02:15.8]} 15. h4 {[%clk 0:02:31.9]} 15...
Nb6 {[%clk 0:02:00.6]} 16. h5 {[%clk 0:02:27.5]} 16... gxh5 {[%clk 0:01:57.5]}
17. Rxh5 {[%clk 0:02:18.4]} 17... Rxh5 {[%clk 0:01:56.6]} 18. gxh5 {[%clk
0:02:19.3]} 18... Qd7 {[%clk 0:01:52.6]} 19. a4 {[%clk 0:02:12.8]} 19... Na5
{[%clk 0:01:42.5]} 20. Qc2 {[%clk 0:01:53.6]} 20... Nac4 {[%clk 0:01:34.1]} 21.
a5 {[%clk 0:01:42.3]} 21... Nxd2 {[%clk 0:01:11.9]} 22. axb6 {[%clk 0:01:42]}
22... Nc4 {[%clk 0:01:07.2]} 23. bxa7 {[%clk 0:01:21.4]} 23... b5 {[%clk
0:01:03.6]} 24. Bb8 {[%clk 0:01:20.5]} 24... Bd6 {[%clk 0:00:58.7]} 25. Qh7
{[%clk 0:01:19.1]} 25... f6 {[%clk 0:00:35.5]} 26. Bxd6 {[%clk 0:00:57.5]} 26...
Qxd6 {[%clk 0:00:27.6]} 27. Qg8+ {[%clk 0:00:55.8]} 27... Qf8 {[%clk 0:00:26.2]}
28. Qxe6+ {[%clk 0:00:53.8]} 28... Qe7 {[%clk 0:00:26.3]} 29. Qxe7+ {[%clk
0:00:53.8]} 29... Kxe7 {[%clk 0:00:27.2]} 30. Bxd5 {[%clk 0:00:52.8]} 1-0

[Event "Late-Titled-Tuesday-Blitz-March-19-2024"]
[Site "Chess.com"]
[Date "2024.03.19"]
[Round "9"]
[White "rcmz"]
[Black "andjela_djidjika"]
[Result "1-0"]
[WhiteElo "2215"]
[BlackElo "2126"]
[TimeControl "180+1"]
[EndTime "15:42:00 PDT"]
[Termination "rcmz won by resignation"]

1. b4 {[%clk 0:03:00.9]} 1... e5 {[%clk 0:02:52.7]} 2. Bb2 {[%clk 0:02:57.4]}
2... Nf6 {[%clk 0:02:46.5]} 3. Bxe5 {[%clk 0:02:54.6]} 3... Bxb4 {[%clk
0:02:45.9]} 4. c4 {[%clk 0:02:54.6]} 4... O-O {[%clk 0:02:44]} 5. Nf3 {[%clk
0:02:54.5]} 5... Nc6 {[%clk 0:02:41.8]} 6. Bb2 {[%clk 0:02:53.2]} 6... d5 {[%clk
0:02:35.5]} 7. cxd5 {[%clk 0:02:54.1]} 7... Nxd5 {[%clk 0:02:35.5]} 8. e3 {[%clk
0:02:53.3]} 8... Re8 {[%clk 0:02:29.7]} 9. Be2 {[%clk 0:02:53.2]} 9... Bf5
{[%clk 0:01:33.5]} 10. a3 {[%clk 0:02:51.7]} 10... Bc5 {[%clk 0:01:25]} 11. O-O
{[%clk 0:02:51]} 11... Bb6 {[%clk 0:00:35.8]} 12. d4 {[%clk 0:02:49.2]} 12... a5
{[%clk 0:00:35.7]} 13. Nbd2 {[%clk 0:02:44.8]} 13... a4 {[%clk 0:00:34.3]} 14.
Nc4 {[%clk 0:02:43.8]} 14... Ba7 {[%clk 0:00:32.4]} 15. Nfe5 {[%clk 0:02:37.4]}
15... Nxe5 {[%clk 0:00:31.5]} 16. Nxe5 {[%clk 0:02:36.8]} 16... Qf6 {[%clk
0:00:31]} 17. Bf3 {[%clk 0:02:33.1]} 17... Be6 {[%clk 0:00:30]} 18. Qxa4 {[%clk
0:02:17.1]} 18... Bxd4 {[%clk 0:00:29.1]} 19. Qxd4 {[%clk 0:02:15.7]} 19... Qg5
{[%clk 0:00:20.6]} 20. h4 {[%clk 0:02:07]} 20... Qh6 {[%clk 0:00:19.1]} 21. Bxd5
{[%clk 0:01:56.8]} 21... Rad8 {[%clk 0:00:15.7]} 22. Bxe6 {[%clk 0:01:47.4]}
22... Rxd4 {[%clk 0:00:15.2]} 23. Bxf7+ {[%clk 0:01:47.3]} 23... Kf8 {[%clk
0:00:13.9]} 24. Bxe8 {[%clk 0:01:37.1]} 24... Rxh4 {[%clk 0:00:14.2]} 25. f3
{[%clk 0:01:24.9]} 25... Rh2 {[%clk 0:00:12.7]} 26. Ng4 {[%clk 0:01:20]} 26...
Rh1+ {[%clk 0:00:10.6]} 27. Kf2 {[%clk 0:01:20]} 27... Qh4+ {[%clk 0:00:11.1]}
28. Ke2 {[%clk 0:01:17.3]} 28... Qg3 {[%clk 0:00:10.8]} 29. Rxh1 {[%clk
0:01:10.3]} 29... Qxg2+ {[%clk 0:00:11.1]} 30. Nf2 {[%clk 0:01:09.7]} 1-0